bitfinex/quotes_BTCUSD_20240729
["timestamp","ask_amount","ask_price","bid_price","bid_amount"]
[1722282552065,1.68619121,67520.0,67519.0,0.009163]
[1722282552462,1.68619121,67520.0,67495.0,0.0646]
[1722282552463,0.906665,67516.0,67495.0,0.0646]
[1722282552666,0.669664,67512.0,67496.0,0.0015542]
[1722282552873,1.67271671,67512.0,67502.0,0.01]
[1722282553077,1.67271671,67512.0,67499.0,0.01]
[1722282553078,1.67271671,67512.0,67501.0,0.148145]
[1722282553482,1.67271671,67512.0,67500.0,0.158147]
[1722282553681,1.40145114,67512.0,67502.0,0.148143]
[1722282553859,1.60056895,67512.0,67499.0,0.02]
[1722282554062,1.60056895,67512.0,67499.0,0.148149]
[1722282554400,1.60056895,67512.0,67500.0,0.158148]
[1722282554618,1.60056895,67512.0,67500.0,0.148148]
[1722282555103,1.67906895,67512.0,67500.0,0.148148]
[1722282555891,1.67906895,67512.0,67501.0,0.00132005]
[1722282556090,1.83516895,67512.0,67501.0,0.00132005]
[1722282556294,1.83516895,67512.0,67498.0,0.000924]
[1722282556295,1.89666895,67512.0,67498.0,0.000924]
[1722282556605,2.20691195,67512.0,67498.0,0.000924]
[1722282557007,2.20691195,67512.0,67498.0,0.010924]
[1722282557008,2.20742824,67512.0,67498.0,0.010924]
[1722282557207,1.91118524,67512.0,67499.0,0.01]
[1722282557431,1.91118524,67512.0,67500.0,0.01]
[1722282557837,1.91118524,67512.0,67498.0,0.000924]
[1722282558176,2.20742824,67512.0,67498.0,0.000924]
[1722282559135,2.22142824,67512.0,67498.0,0.000924]
[1722282559546,2.23034121,67512.0,67498.0,0.000924]
[1722282560148,2.1738065,67512.0,67498.0,0.000924]
[1722282560351,2.2308438,67512.0,67498.0,0.000924]
[1722282562582,2.2308438,67512.0,67511.0,1e-08]
[1722282563570,2.1738065,67512.0,67511.0,1e-08]
[1722282563773,2.23085056,67512.0,67511.0,1e-08]
[1722282564114,2.21685056,67512.0,67511.0,1e-08]
[1722282564351,2.23085056,67512.0,67511.0,1e-08]
[1722282564753,2.1738065,67512.0,67511.0,1e-08]
[1722282566443,2.23019038,67512.0,67511.0,1e-08]
[1722282566711,2.1738065,67512.0,67511.0,1e-08]
[1722282566913,0.296258,67509.0,67498.0,0.000924]
[1722282567123,0.14815,67499.0,67498.0,0.000924]
[1722282567322,0.54514729,67499.0,67498.0,0.000924]
[1722282567529,0.39699729,67499.0,67498.0,0.000924]
[1722282568292,0.55414729,67499.0,67498.0,0.000924]
[1722282568486,0.40599729,67499.0,67498.0,0.000924]
[1722282568729,0.47622572,67499.0,67498.0,0.000924]
[1722282568933,0.40599729,67499.0,67498.0,0.159076]
[1722282569146,0.40599729,67499.0,67498.0,0.149076]
[1722282569516,0.40599729,67499.0,67498.0,0.761686]
[1722282569711,0.30599729,67499.0,67498.0,0.904286]
[1722282569914,0.1628979,67499.0,67498.0,1.200591]
[1722282570172,0.1628979,67499.0,67498.0,0.904286]
[1722282570354,0.1628979,67499.0,67498.0,0.607981]
[1722282570583,0.1628979,67499.0,67498.0,0.143524]
[1722282570584,0.32318127,67499.0,67498.0,0.143524]
[1722282570784,0.32318127,67499.0,67498.0,0.163524]
[1722282570967,0.32318127,67499.0,67498.0,0.311676]
[1722282571123,0.32318127,67499.0,67498.0,0.163524]
[1722282571767,0.32318127,67499.0,67498.0,0.153524]
[1722282571967,0.32318127,67499.0,67498.0,0.163524]
[1722282574400,0.33718127,67499.0,67498.0,0.163524]
[1722282574605,0.31999729,67499.0,67498.0,0.607981]
[1722282575138,0.31999729,67499.0,67498.0,0.163524]
[1722282575473,0.55087955,67499.0,67498.0,0.163524]
[1722282575778,0.31999729,67499.0,67498.0,0.163524]
[1722282575978,0.39733411,67499.0,67498.0,0.163524]
[1722282576540,0.6282078,67499.0,67498.0,0.163524]
[1722282576839,0.6282078,67499.0,67498.0,0.311676]
[1722282577050,0.6282078,67499.0,67498.0,0.163524]
[1722282577924,0.6282078,67499.0,67498.0,0.311676]
[1722282578130,0.6282078,67499.0,67498.0,0.163524]
[1722282580271,0.6282078,67499.0,67498.0,0.000924]
[1722282580272,1.7227958,67499.0,67498.0,0.000924]
[1722282581642,1.74604036,67499.0,67498.0,0.000924]
[1722282581893,1.84604036,67499.0,67498.0,0.000924]
[1722282582424,2.15323881,67499.0,67498.0,0.000924]
[1722282582638,2.15335084,67499.0,67498.0,0.000924]
[1722282582954,2.06145239,67499.0,67498.0,0.000924]
[1722282583481,1.84615239,67499.0,67498.0,0.000924]
[1722282583944,1.84615239,67499.0,67498.0,0.073024]
[1722282583945,0.73176557,67499.0,67498.0,0.073024]
[1722282584156,0.87991557,67499.0,67498.0,0.073024]
[1722282584522,0.73176557,67499.0,67498.0,0.073024]
[1722282584929,0.87991557,67499.0,67498.0,0.073024]
[1722282585161,0.85667101,67499.0,67498.0,0.073024]
[1722282585757,0.81240558,67499.0,67498.0,0.063024]
[1722282586189,0.80340558,67499.0,67498.0,0.063024]
[1722282586425,0.74586758,67499.0,67498.0,0.073024]
[1722282586572,0.81660918,67499.0,67498.0,0.073024]
[1722282586797,0.81660918,67499.0,67498.0,0.527481]
[1722282586798,0.45562522,67499.0,67498.0,0.527481]
[1722282587140,0.39688362,67499.0,67498.0,0.823786]
[1722282587341,0.39688362,67499.0,67498.0,0.902586]
[1722282587523,0.39688362,67499.0,67498.0,0.606281]
[1722282587903,0.39677783,67499.0,67498.0,0.902586]
[1722282588267,0.42002102,67499.0,67498.0,0.902586]
[1722282589378,0.42002102,67499.0,67498.0,0.606281]
[1722282589578,0.6060167,67499.0,67498.0,0.161824]
[1722282589986,0.6060167,67499.0,67498.0,0.141824]
[1722282590201,0.6060167,67499.0,67498.0,0.161824]
[1722282590202,0.66517164,67499.0,67498.0,0.161824]
[1722282591100,0.67917164,67499.0,67498.0,0.161824]
[1722282591255,0.67917164,67499.0,67498.0,0.309976]
[1722282591256,0.63627535,67499.0,67498.0,0.309976]
[1722282591455,0.63627535,67499.0,67498.0,0.606281]
[1722282591456,0.57712041,67499.0,67498.0,0.606281]
[1722282591701,0.43402102,67499.0,67498.0,0.902586]
[1722282592481,0.43402102,67499.0,67498.0,0.606281]
[1722282592643,0.43402102,67499.0,67498.0,0.902586]
[1722282593280,0.47831731,67499.0,67498.0,0.606281]
[1722282594135,0.6214167,67499.0,67498.0,0.161824]
[1722282594497,0.6214167,67499.0,67498.0,0.099724]
[1722282594925,0.6214167,67499.0,67498.0,0.020924]
[1722282595129,0.68069178,67499.0,67498.0,0.020924]
[1722282595683,0.6214167,67499.0,67498.0,0.020924]
[1722282595850,0.57712041,67499.0,67498.0,0.169076]
[1722282596271,0.57712041,67499.0,67498.0,0.465381]
[1722282596472,0.57712041,67499.0,67498.0,0.169076]
[1722282598058,0.57712041,67499.0,67498.0,0.465381]
[1722282598586,0.43402102,67499.0,67498.0,0.838786]
[1722282598931,0.43402102,67499.0,67498.0,1.135091]
[1722282599086,0.43402102,67499.0,67498.0,1.198591]
[1722282599500,0.43398415,67499.0,67498.0,1.198591]
[1722282600303,0.43398415,67499.0,67498.0,1.494896]
[1722282600504,0.20313957,67499.0,67498.0,1.198591]
[1722282603824,0.19113957,67499.0,67498.0,1.198591]
[1722282604025,0.21123171,67499.0,67498.0,1.198591]
[1722282604220,0.21523171,67499.0,67498.0,1.198591]
[1722282604449,0.21123171,67499.0,67498.0,1.047991]
[1722282604653,0.3543311,67499.0,67498.0,0.169076]
[1722282604853,0.3553311,67499.0,67498.0,0.169076]
[1722282605223,0.3553311,67499.0,67498.0,0.010924]
[1722282605224,0.3543311,67499.0,67498.0,0.010924]
[1722282605577,0.3543311,67499.0,67498.0,0.020924]
[1722282605771,0.58517211,67499.0,67498.0,0.465381]
[1722282606301,0.57117211,67499.0,67498.0,0.465381]
[1722282606486,0.55107997,67499.0,67498.0,0.465381]
[1722282607728,0.55407997,67499.0,67498.0,0.465381]
[1722282607924,0.70222997,67499.0,67498.0,0.010924]
[1722282608245,1.06312997,67499.0,67498.0,0.000924]
[1722282608415,1.26629844,67499.0,67498.0,0.000924]
[1722282608611,0.61414905,67499.0,67498.0,0.010924]
[1722282608811,0.55407997,67499.0,67498.0,0.010924]
[1722282610300,0.55407997,67499.0,67498.0,0.465381]
[1722282610472,0.55407997,67499.0,67498.0,0.904786]
[1722282610676,0.55407997,67499.0,67498.0,0.608481]
[1722282611033,0.42498058,67499.0,67498.0,0.904786]
[1722282611574,0.18013957,67499.0,67498.0,0.904786]
[1722282611777,0.18013957,67499.0,67498.0,1.201091]
[1722282612011,0.19413957,67499.0,67498.0,1.201091]
[1722282612453,0.18013957,67499.0,67498.0,0.608481]
[1722282612620,0.18013957,67499.0,67498.0,0.904786]
[1722282612840,0.42298753,67499.0,67498.0,0.904786]
[1722282613082,0.19213957,67499.0,67498.0,0.904786]
[1722282613606,0.19213957,67499.0,67498.0,1.201091]
[1722282613834,0.19213957,67499.0,67498.0,1.32419777]
[1722282614244,0.19213957,67499.0,67498.0,1.201091]
[1722282614446,0.18013957,67499.0,67498.0,1.201091]
[1722282614913,0.21223753,67499.0,67498.0,1.201091]
[1722282615280,0.18013957,67499.0,67498.0,1.201091]
[1722282615688,0.19213957,67499.0,67498.0,1.201091]
[1722282616245,0.18013957,67499.0,67498.0,1.201091]
[1722282616453,0.19113957,67499.0,67498.0,1.201091]
[1722282622752,0.18013957,67499.0,67498.0,1.201091]
[1722282622948,0.17713957,67499.0,67498.0,1.201091]
[1722282623448,0.18613957,67499.0,67498.0,1.201091]
[1722282624078,0.17713957,67499.0,67498.0,1.201091]
[1722282624642,0.17813957,67499.0,67498.0,1.202091]
[1722282624813,0.18213957,67499.0,67498.0,1.498396]
[1722282625014,0.18213957,67499.0,67498.0,1.62050181]
[1722282625015,0.18113957,67499.0,67498.0,1.62050181]
[1722282625213,0.18113957,67499.0,67498.0,1.62150181]
[1722282625429,0.18213957,67499.0,67498.0,1.62150181]
[1722282625632,0.18213957,67499.0,67498.0,1.498396]
[1722282625756,0.18113957,67499.0,67498.0,1.62050057]
[1722282626177,0.18213957,67499.0,67498.0,1.32519557]
[1722282626774,0.18213957,67499.0,67498.0,1.202091]
[1722282627192,0.17813957,67499.0,67498.0,1.202091]
[1722282627395,0.17813531,67499.0,67498.0,1.202091]
[1722282627596,0.17813531,67499.0,67498.0,1.201091]
[1722282627597,0.17713531,67499.0,67498.0,1.201091]
[1722282627831,0.17813531,67499.0,67498.0,1.202091]
[1722282628439,0.17713531,67499.0,67498.0,1.201091]
[1722282628634,0.18013531,67499.0,67498.0,1.202091]
[1722282628840,0.17813531,67499.0,67498.0,1.32519865]
[1722282629918,0.17713531,67499.0,67498.0,1.32419865]
[1722282630256,0.17713531,67499.0,67498.0,1.32519865]
[1722282630555,0.17713531,67499.0,67498.0,1.32419865]
[1722282630821,0.17713531,67499.0,67498.0,1.32519865]
[1722282631171,0.1771273,67499.0,67498.0,1.32519865]
[1722282631976,0.1771273,67499.0,67498.0,1.32619865]
[1722282631977,0.1781273,67499.0,67498.0,1.32619865]
[1722282632177,0.1781273,67499.0,67498.0,1.203091]
[1722282632376,0.1781273,67499.0,67498.0,1.32619829]
[1722282633138,0.1781273,67499.0,67498.0,1.203091]
[1722282633265,0.1781273,67499.0,67498.0,1.32619867]
[1722282633665,0.1771273,67499.0,67498.0,1.202091]
[1722282635009,0.1771273,67499.0,67498.0,1.201091]
[1722282635409,0.1771273,67499.0,67498.0,1.202091]
[1722282635613,0.1771273,67499.0,67498.0,1.32519917]
[1722282635831,0.1771273,67499.0,67498.0,1.62150417]
[1722282637757,0.1771273,67499.0,67498.0,1.62050417]
[1722282637962,0.1771273,67499.0,67498.0,1.62150417]
[1722282638492,0.1771273,67499.0,67498.0,1.63150417]
[1722282638706,0.1771273,67499.0,67498.0,1.76360356]
[1722282638907,0.1771273,67499.0,67498.0,1.77360356]
[1722282639130,0.17810807,67499.0,67498.0,1.82001368]
[1722282639257,0.02424319,67499.0,67498.0,2.76468074]
[1722282639659,0.00084,67500.0,67499.0,0.052]
[1722282639859,0.00084,67500.0,67499.0,2.28187163]
[1722282640463,0.00084,67500.0,67499.0,2.57817163]
[1722282640924,0.00084,67500.0,67499.0,2.28187163]
[1722282641052,0.15470241,67500.0,67499.0,1.77395756]
[1722282641408,0.00084,67500.0,67499.0,1.62085817]
[1722282641549,0.15470204,67500.0,67499.0,1.62085817]
[1722282642207,0.15470204,67500.0,67499.0,1.62085201]
[1722282642820,0.15470204,67500.0,67499.0,1.6208519]
[1722282643011,0.15470204,67500.0,67499.0,1.62085148]
[1722282643212,0.17794172,67500.0,67499.0,1.62085148]
[1722282644615,0.17894172,67500.0,67499.0,1.62185148]
[1722282644815,0.19683589,67500.0,67499.0,0.88485148]
[1722282645132,0.25973589,67500.0,67499.0,0.76075]
[1722282645335,0.40283528,67500.0,67498.0,0.002924]
[1722282645542,0.52754168,67499.0,67498.0,0.000924]
[1722282645743,0.76206058,67499.0,67498.0,0.000924]
[1722282646109,0.77555461,67499.0,67498.0,0.000924]
[1722282646419,0.92370461,67499.0,67498.0,0.000924]
[1722282646760,1.57350828,67499.0,67498.0,0.000924]
[1722282647427,1.58450828,67499.0,67498.0,0.000924]
[1722282647626,1.57350828,67499.0,67498.0,0.000924]
[1722282648043,1.58650828,67499.0,67498.0,0.000924]
[1722282648507,1.58702973,67499.0,67498.0,0.000924]
[1722282648666,1.52930461,67499.0,67498.0,0.000924]
[1722282649079,1.58702984,67499.0,67498.0,0.000924]
[1722282649252,0.90001094,67499.0,67498.0,0.000924]
[1722282649458,0.84228571,67499.0,67498.0,0.010924]
[1722282650486,1.13858571,67499.0,67498.0,0.000924]
[1722282652343,1.43488571,67499.0,67498.0,0.000924]
[1722282652577,1.48911343,67499.0,67498.0,0.000924]
[1722282652927,1.92851282,67499.0,67498.0,0.000924]
[1722282653491,2.139441,67499.0,67498.0,0.000924]
[1722282653716,2.02851282,67499.0,67498.0,0.000924]
[1722282654637,2.03051282,67499.0,67498.0,0.000924]
[1722282654787,2.06351282,67499.0,67498.0,0.000924]
[1722282655411,2.0092851,67499.0,67498.0,0.000924]
[1722282655617,2.06349098,67499.0,67498.0,0.000924]
[1722282656828,2.04049098,67499.0,67498.0,0.000924]
[1722282658624,1.98555919,67499.0,67498.0,0.000924]
[1722282658826,1.98489314,67499.0,67498.0,0.000924]
[1722282659022,2.00813914,67499.0,67498.0,0.000924]
[1722282659224,1.98489314,67499.0,67498.0,0.000924]
[1722282659433,1.97489314,67499.0,67498.0,0.000924]
[1722282659871,1.92135331,67499.0,67498.0,0.000924]
[1722282660262,1.48195392,67499.0,67498.0,0.000924]
[1722282660475,0.88935392,67499.0,67498.0,0.000924]
[1722282661104,1.18565392,67499.0,67498.0,0.000924]
[1722282661507,1.48195392,67499.0,67498.0,0.010924]
[1722282661777,1.48195392,67499.0,67498.0,0.000924]
[1722282661952,1.62505331,67499.0,67498.0,0.000924]
[1722282662809,1.64829886,67499.0,67498.0,0.000924]
[1722282663134,1.70225698,67499.0,67498.0,0.000924]
[1722282663361,1.64829886,67499.0,67498.0,0.000924]
[1722282665051,1.62505331,67499.0,67498.0,0.000924]
[1722282667542,1.62505331,67499.0,67498.0,0.00020145]
[1722282668453,1.93135331,67499.0,67498.0,0.00020145]
[1722282668730,0.886017,67493.0,67492.0,0.00024489]
[1722282668893,1.2155275,67493.0,67492.0,0.00024489]
[1722282669094,1.35862689,67493.0,67492.0,0.00024489]
[1722282669349,1.39521711,67493.0,67492.0,0.00024489]
[1722282670768,1.40221711,67493.0,67492.0,0.00024489]
[1722282670964,1.48862169,67493.0,67492.0,0.00024489]
[1722282671363,0.51620011,67493.0,67492.0,0.00024489]
[1722282671571,0.81252711,67493.0,67492.0,0.00024489]
[1722282672118,1.01460371,67493.0,67492.0,0.00024489]
[1722282672460,0.71927671,67493.0,67492.0,0.00124489]
[1722282673251,1.01560371,67493.0,67492.0,0.00124489]
[1722282673512,1.04777488,67493.0,67492.0,0.00124489]
[1722282674035,1.34410188,67493.0,67492.0,0.00124489]
[1722282675048,1.29018828,67493.0,67492.0,0.00124489]
[1722282675571,1.34419359,67493.0,67492.0,0.00124489]
[1722282677006,1.35314865,67493.0,67492.0,0.00124489]
[1722282677181,1.79473399,67493.0,67492.0,0.00124489]
[1722282677379,2.20106099,67493.0,67492.0,0.00124489]
[1722282677644,2.46811799,67493.0,67492.0,0.00124489]
[1722282677943,2.46811799,67493.0,67477.0,0.01]
[1722282677944,0.444568,67481.0,67477.0,0.01]
[1722282678059,1.26762054,67481.0,67478.0,0.0015542]
[1722282678483,1.28038398,67481.0,67478.0,0.0015542]
[1722282678662,1.28038398,67481.0,67476.0,0.019174]
[1722282678663,1.3036339,67481.0,67476.0,0.019174]
[1722282678864,1.28038398,67481.0,67477.0,0.01]
[1722282679106,1.42348337,67481.0,67477.0,0.01]
[1722282679304,1.42348337,67481.0,67476.0,0.019174]
[1722282679509,1.43648337,67481.0,67476.0,0.019174]
[1722282679883,1.43648337,67481.0,67477.0,0.01]
[1722282680130,1.43648337,67481.0,67476.0,0.009174]
[1722282680131,1.73286237,67481.0,67476.0,0.009174]
[1722282680331,1.43648337,67481.0,67476.0,0.009174]
[1722282680684,1.43848337,67481.0,67476.0,0.009174]
[1722282680912,0.55443698,67481.0,67479.0,0.01]
[1722282681040,0.70262598,67481.0,67480.0,0.019174]
[1722282681671,0.64911051,67481.0,67480.0,0.019174]
[1722282682044,0.70123547,67481.0,67480.0,0.009174]
[1722282682242,1.10101747,67481.0,67480.0,0.009174]
[1722282682360,1.10801747,67481.0,67480.0,0.009174]
[1722282682758,1.10101747,67481.0,67480.0,0.009174]
[1722282683159,1.09001747,67481.0,67480.0,0.009174]
[1722282683390,1.10401747,67481.0,67480.0,0.009174]
[1722282683977,1.11326729,67481.0,67480.0,0.009174]
[1722282684180,1.12626729,67481.0,67480.0,0.009174]
[1722282684312,1.10301747,67481.0,67480.0,0.009174]
[1722282684517,1.09001747,67481.0,67480.0,0.009174]
[1722282684744,1.10401747,67481.0,67480.0,0.009174]
[1722282684929,1.04989251,67481.0,67480.0,0.009174]
[1722282685127,1.10356344,67481.0,67480.0,0.009174]
[1722282685740,1.04789251,67481.0,67480.0,0.009174]
[1722282685979,1.04789251,67481.0,67480.0,0.019174]
[1722282686179,1.04789251,67481.0,67480.0,0.009174]
[1722282686356,1.05389251,67481.0,67480.0,0.009174]
[1722282686563,1.06272218,67481.0,67480.0,0.009174]
[1722282687161,1.09600059,67481.0,67480.0,0.009174]
[1722282687361,1.45878937,67481.0,67480.0,0.009174]
[1722282687808,1.16241037,67481.0,67480.0,0.009174]
[1722282688009,0.91081837,67481.0,67480.0,0.019174]
[1722282688262,0.7909688,67481.0,67480.0,0.163874]
[1722282688435,0.57331524,67481.0,67480.0,1.211218]
[1722282688638,0.57331524,67481.0,67480.0,1.519602]
[1722282688813,0.56882357,67481.0,67480.0,1.63073953]
[1722282688990,0.41485868,67481.0,67480.0,1.63229373]
[1722282689504,0.56876775,67481.0,67480.0,1.63073953]
[1722282689704,0.40085868,67481.0,67480.0,1.63073953]
[1722282690093,0.39203873,67481.0,67480.0,1.63073953]
[1722282690513,0.40603873,67481.0,67480.0,1.64073953]
[1722282690715,0.40603873,67481.0,67480.0,2.10222292]
[1722282690716,0.33943873,67481.0,67480.0,2.10222292]
[1722282690914,0.33943873,67481.0,67480.0,2.22522292]
[1722282691149,0.19893541,67481.0,67480.0,2.22522292]
[1722282691509,0.02418201,67481.0,67480.0,2.52158143]
[1722282691709,0.02418201,67481.0,67480.0,2.56750508]
[1722282691914,0.014,67481.0,67480.0,2.56595088]
[1722282692109,0.014,67481.0,67480.0,2.52158143]
[1722282692309,0.44444115,67505.0,67480.0,2.52158143]
[1722282692310,0.44444115,67505.0,67499.0,1.19755]
[1722282692712,0.00966027,67500.0,67499.0,1.19755]
[1722282693090,0.00084,67500.0,67499.0,1.19755]
[1722282693881,0.00084,67500.0,67499.0,0.90225]
[1722282693882,0.00184,67500.0,67499.0,0.90225]
[1722282694298,0.00184,67500.0,67499.0,1.19855]
[1722282694840,0.00584,67500.0,67499.0,1.19855]
[1722282696724,0.00484,67500.0,67499.0,1.19755]
[1722282697035,0.02508171,67500.0,67499.0,1.20855]
[1722282697382,0.02508171,67500.0,67499.0,1.20955]
[1722282697625,0.02408171,67500.0,67499.0,1.19855]
[1722282698025,0.02408171,67500.0,67499.0,1.20955]
[1722282698026,0.00184,67500.0,67499.0,1.20955]
[1722282698224,0.00184,67500.0,67499.0,1.20855]
[1722282698593,0.00184,67500.0,67499.0,1.20955]
[1722282699003,0.00184,67500.0,67499.0,1.20855]
[1722282699205,0.00184,67500.0,67499.0,0.031]
[1722282699206,0.14493939,67500.0,67499.0,0.031]
[1722282699414,0.16837572,67500.0,67499.0,0.031]
[1722282699835,0.15288178,67500.0,67499.0,0.02]
[1722282700250,0.15388178,67500.0,67499.0,0.029]
[1722282700449,0.15388178,67500.0,67499.0,0.17715]
[1722282700674,0.00978239,67500.0,67499.0,0.84085]
[1722282701211,0.00084,67500.0,67499.0,0.84085]
[1722282701357,0.02408216,67500.0,67499.0,0.84085]
[1722282701982,0.02508216,67500.0,67499.0,1.14615]
[1722282702181,0.02508216,67500.0,67499.0,0.84985]
[1722282702945,0.00184,67500.0,67499.0,0.84985]
[1722282703095,0.00084,67500.0,67499.0,0.84085]
[1722282703585,0.00184,67500.0,67499.0,0.84885]
[1722282704305,0.00084,67500.0,67499.0,0.84085]
[1722282704730,0.00084,67500.0,67499.0,0.84185]
[1722282705158,0.00084,67500.0,67499.0,0.84085]
[1722282706009,0.02408185,67500.0,67499.0,0.54455]
[1722282706457,0.02408185,67500.0,67499.0,0.84085]
[1722282706458,0.00084,67500.0,67499.0,0.84085]
[1722282706691,0.00184,67500.0,67499.0,0.85085]
[1722282706898,0.00384,67500.0,67499.0,0.85085]
[1722282707329,0.00384,67500.0,67499.0,0.55455]
[1722282707639,0.00384,67500.0,67499.0,0.85085]
[1722282708221,0.00384,67500.0,67499.0,0.55455]
[1722282708367,0.00284,67500.0,67499.0,0.54455]
[1722282708765,0.00384,67500.0,67499.0,0.55255]
[1722282709573,0.02908185,67500.0,67499.0,0.84885]
[1722282710025,0.02908185,67500.0,67499.0,0.55255]
[1722282711632,0.02908185,67500.0,67499.0,0.47245]
[1722282713182,0.02908185,67500.0,67499.0,0.76875]
[1722282713924,0.00584,67500.0,67499.0,0.76875]
[1722282714271,0.00584,67500.0,67499.0,0.47245]
[1722282714448,0.00584,67500.0,67499.0,0.76875]
[1722282716316,0.00584,67500.0,67499.0,0.82985]
[1722282717437,0.02908219,67500.0,67499.0,0.82985]
[1722282717738,0.00584,67500.0,67499.0,0.82985]
[1722282718042,0.08321195,67500.0,67499.0,0.82985]
[1722282718439,0.08321195,67500.0,67499.0,0.90535]
[1722282718666,0.08319911,67500.0,67499.0,1.20165]
[1722282718861,0.00584,67500.0,67499.0,1.32475685]
[1722282719117,0.00584,67500.0,67499.0,1.62105685]
[1722282719282,0.00584,67500.0,67499.0,1.32475685]
[1722282719662,0.00484,67500.0,67499.0,1.31675685]
[1722282720040,0.00584,67500.0,67499.0,1.32475685]
[1722282720484,0.02907986,67500.0,67499.0,1.32475685]
[1722282720758,0.02807986,67500.0,67499.0,1.31675685]
[1722282721079,0.02907986,67500.0,67499.0,1.20565]
[1722282721283,0.02907986,67500.0,67499.0,1.3287503]
[1722282722800,0.02407986,67500.0,67499.0,1.3167503]
[1722282722977,0.02507986,67500.0,67499.0,1.3307503]
[1722282723175,0.02607986,67500.0,67499.0,1.3387503]
[1722282723378,0.02607986,67500.0,67499.0,1.3307503]
[1722282723751,0.02507986,67500.0,67499.0,0.9593503]
[1722282724051,0.02507986,67500.0,67499.0,0.78375]
[1722282724052,0.02707986,67500.0,67499.0,0.78375]
[1722282724180,0.02707986,67500.0,67499.0,0.48745]
[1722282724181,0.00384,67500.0,67499.0,0.48745]
[1722282724380,0.01294912,67500.0,67499.0,0.48745]
[1722282724583,0.07794912,67500.0,67499.0,0.19115]
[1722282724785,0.07794912,67500.0,67499.0,0.48745]
[1722282724985,0.06884,67500.0,67499.0,0.78375]
[1722282726049,0.06884,67500.0,67499.0,0.48745]
[1722282727318,0.06884,67500.0,67499.0,0.78375]
[1722282727851,0.06884,67500.0,67499.0,0.48745]
[1722282728213,0.06884,67500.0,67499.0,0.78375]
[1722282728421,0.00384,67500.0,67499.0,0.78375]
[1722282730126,0.00384,67500.0,67499.0,1.08005]
[1722282730319,0.00384,67500.0,67499.0,0.78375]
[1722282730530,0.00384,67500.0,67499.0,1.08005]
[1722282730748,0.00384,67500.0,67499.0,0.48745]
[1722282730947,0.08257686,67500.0,67499.0,0.48745]
[1722282732426,0.00384,67500.0,67499.0,0.48745]
[1722282732628,0.14854,67500.0,67499.0,0.48745]
[1722282732825,0.22727686,67500.0,67499.0,0.48745]
[1722282733087,0.15764723,67500.0,67499.0,0.48745]
[1722282733240,0.25501863,67500.0,67499.0,0.48745]
[1722282733829,0.25501863,67500.0,67499.0,0.78375]
[1722282734037,0.03618913,67500.0,67499.0,0.78375]
[1722282734242,0.0270819,67500.0,67499.0,0.78375]
[1722282734803,0.12527464,67500.0,67499.0,0.78375]
[1722282734981,0.0270819,67500.0,67499.0,0.78375]
[1722282735385,0.12561135,67500.0,67499.0,0.78375]
[1722282735581,0.0270819,67500.0,67499.0,0.78375]
[1722282735987,0.12503481,67500.0,67499.0,0.78375]
[1722282736197,0.0270819,67500.0,67499.0,0.78375]
[1722282736990,0.0270819,67500.0,67499.0,1.08005]
[1722282737861,0.0270819,67500.0,67499.0,1.20315682]
[1722282739380,0.0270819,67500.0,67499.0,0.16610682]
[1722282739582,0.04412009,67500.0,67499.0,0.043]
[1722282739783,0.15067149,67500.0,67499.0,0.043]
[1722282739989,0.17529005,67500.0,67499.0,0.043]
[1722282740604,0.17429005,67500.0,67499.0,0.043]
[1722282740888,0.17529005,67500.0,67499.0,0.043]
[1722282741046,0.15825186,67500.0,67499.0,0.043]
[1722282741431,0.15625186,67500.0,67499.0,0.034]
[1722282741845,0.15725186,67500.0,67499.0,0.034]
[1722282742314,0.15725186,67500.0,67499.0,0.18215]
[1722282742520,0.15625186,67500.0,67499.0,0.16815]
[1722282742855,0.16497688,67500.0,67499.0,0.16815]
[1722282743058,0.16497688,67500.0,67499.0,0.02]
[1722282744033,0.16497688,67500.0,67499.0,0.16815]
[1722282744384,0.16497688,67500.0,67499.0,0.46445]
[1722282744967,0.16497688,67500.0,67499.0,0.16815]
[1722282745474,0.14173498,67500.0,67499.0,0.16815]
[1722282748105,0.14173498,67500.0,67499.0,0.17615]
[1722282748106,0.14273498,67500.0,67499.0,0.17615]
[1722282748745,0.16597712,67500.0,67499.0,0.17615]
[1722282748944,0.14273498,67500.0,67499.0,0.17615]
[1722282751484,0.27790996,67500.0,67499.0,0.76875]
[1722282751643,0.1481434,67500.0,67499.0,0.84745]
[1722282751857,0.03653823,67500.0,67499.0,0.84745]
[1722282752062,0.02745856,67500.0,67499.0,0.84745]
[1722282752403,0.05070052,67500.0,67499.0,0.84745]
[1722282752966,0.16227282,67500.0,67499.0,0.84745]
[1722282756995,0.13903086,67500.0,67499.0,0.84745]
[1722282757147,0.02745856,67500.0,67499.0,0.84745]
[1722282757353,0.13903086,67500.0,67499.0,0.84745]
[1722282757573,0.02745856,67500.0,67499.0,0.84745]
[1722282758103,0.13903086,67500.0,67499.0,0.84745]
[1722282758317,0.02745856,67500.0,67499.0,0.84745]
[1722282758727,0.13903086,67500.0,67499.0,0.84745]
[1722282758852,0.02745856,67500.0,67499.0,0.84745]
[1722282759051,0.13903086,67500.0,67499.0,0.84745]
[1722282759665,0.02745856,67500.0,67499.0,0.84745]
[1722282759887,0.02745856,67500.0,67499.0,0.82745]
[1722282759888,0.13903086,67500.0,67499.0,0.82745]
[1722282760085,0.13903086,67500.0,67499.0,0.17615]
[1722282760086,0.02745856,67500.0,67499.0,0.17615]
[1722282760286,0.14812368,67500.0,67499.0,0.17615]
[1722282760533,0.05979334,67500.0,67499.0,0.17615]
[1722282760741,0.14812368,67500.0,67499.0,0.17615]
[1722282761046,0.03655138,67500.0,67499.0,0.028]
[1722282761244,0.14812368,67500.0,67499.0,0.028]
[1722282761400,0.03655138,67500.0,67499.0,0.028]
[1722282761600,0.29302368,67500.0,67499.0,0.028]
[1722282762195,0.29302368,67500.0,67499.0,0.008]
[1722282762196,0.44117168,67500.0,67499.0,0.008]
[1722282762425,0.3449786,67500.0,67499.0,0.008]
[1722282763776,0.3449786,67500.0,67499.0,0.028]
[1722282764146,0.34536434,67500.0,67499.0,0.018]
[1722282764340,1.47315907,67500.0,67499.0,0.008]
[1722282764493,1.27483109,67500.0,67499.0,0.008]
[1722282764673,1.57112709,67500.0,67499.0,0.008]